bitfinex-derivatives/quotes_BTCF0:USTF0_20251118
["timestamp","ask_amount","ask_price","bid_price","bid_amount"]
[1763432523086,0.00236227,91350.0,91349.0,0.08278]
[1763432523283,0.00236227,91350.0,91339.0,0.03888772]
[1763432523480,0.08681,91341.0,91340.0,0.00073267]
[1763432523772,0.00236227,91350.0,91340.0,0.00073267]
[1763432523773,0.00016424,91350.0,91349.0,0.08278]
[1763432524172,0.03851402,91395.0,91350.0,0.00073267]
[1763432524382,0.00219803,91380.0,91360.0,0.16906664]
[1763432524585,0.00219803,91380.0,91370.0,0.00073267]
[1763432525087,0.10936,91371.0,91370.0,0.00073267]
[1763432525286,0.08681,91371.0,91370.0,0.00073267]
[1763432525479,0.02255,91390.0,91370.0,0.00073267]
[1763432525790,0.00219803,91380.0,91370.0,0.00073267]
[1763432526982,0.00219803,91380.0,91372.0,0.03928565]
[1763432527290,0.00219803,91380.0,91373.0,0.03928565]
[1763432527481,0.00219803,91380.0,91370.0,0.00073267]
[1763432527482,0.00219803,91380.0,91375.0,0.03928565]
[1763432527684,0.00219803,91380.0,91373.0,0.03928565]
[1763432527685,0.08681,91376.0,91373.0,0.03928565]
[1763432527985,0.00219803,91380.0,91371.0,0.02211598]
[1763432528193,0.00219803,91380.0,91370.0,0.00073267]
[1763432528484,0.02558,91400.0,91379.0,0.08278]
[1763432528679,0.00219803,91390.0,91379.0,0.08278]
[1763432528886,0.08631371,91414.0,91395.0,0.08278]
[1763432529088,0.08631371,91414.0,91395.0,0.1923269]
[1763432529295,0.08631371,91414.0,91395.0,0.19218]
[1763432529488,0.00219803,91410.0,91409.0,0.08278]
[1763432529786,0.00219803,91410.0,91396.0,1.5]
[1763432529986,0.00219803,91410.0,91400.0,0.00073267]
[1763432530989,0.01040169,91436.0,91409.0,0.08278]
[1763432531194,0.00219803,91420.0,91410.0,0.00073267]
[1763432531394,0.00219803,91420.0,91419.0,0.0426]
[1763432531888,0.00219803,91420.0,91406.0,0.00016414]
[1763432531889,0.01040169,91436.0,91420.0,0.08351267]
[1763432532499,0.09412509,91421.0,91420.0,0.00073267]
[1763432533279,0.00731509,91421.0,91420.0,0.00073267]
[1763432533479,0.00731509,91421.0,91420.0,0.08351267]
[1763432534289,0.00731509,91421.0,91420.0,0.04333267]
[1763432534492,0.08681,91407.0,91406.0,0.00016414]
[1763432534886,0.08681,91397.0,91396.0,1.5]
[1763432535197,0.08681,91397.0,91365.0,9.497e-05]
[1763432535491,0.16906664,91406.0,91390.0,0.00073267]
[1763432535684,0.08681,91391.0,91390.0,0.00073267]
[1763432535889,0.00219803,91400.0,91381.0,0.00016414]
[1763432535890,0.08681,91382.0,91381.0,0.00016414]
[1763432536289,0.08681,91367.0,91366.0,1.5]
[1763432536490,0.19161664,91390.0,91366.0,1.5]
[1763432536491,0.00219803,91370.0,91366.0,1.5]
[1763432536687,0.08681,91367.0,91366.0,1.5]
[1763432537097,0.08681,91367.0,91366.0,1.43983]
[1763432537986,0.00219803,91370.0,91366.0,1.37966]
[1763432538186,0.00016414,91376.0,91375.0,0.08278]
[1763432538694,0.20758066,91410.0,91375.0,0.08278]
[1763432538888,0.07514,91401.0,91400.0,0.00073267]
[1763432539205,0.00219803,91400.0,91371.0,0.02212]
[1763432539492,0.00219803,91400.0,91390.0,0.00073267]
[1763432539694,0.00016383,91395.0,91390.0,0.00073267]
[1763432539901,0.00016383,91395.0,91390.0,0.02430267]
[1763432540796,0.00016383,91395.0,91394.0,0.07353]
[1763432541095,0.08782836,91424.0,91394.0,0.07353]
[1763432541290,0.00219803,91420.0,91410.0,0.00073267]
[1763432541491,0.0731,91411.0,91410.0,0.00073267]
[1763432542194,0.0731,91402.0,91401.0,0.00016414]
[1763432542400,0.12581476,91424.0,91401.0,0.00016414]
[1763432542696,0.00219803,91420.0,91419.0,0.07353]
[1763432543686,0.0004,91430.0,91429.0,0.07353]
[1763432544288,0.00259803,91430.0,91420.0,0.00016414]
[1763432544489,0.00259803,91430.0,91420.0,0.00089681]
[1763432544688,0.00259803,91430.0,91429.0,0.07353]
[1763432544888,0.00027339,91446.0,91429.0,0.07353]
[1763432545199,0.00027339,91446.0,91435.0,0.07353]
[1763432545597,0.01547,91485.0,91445.0,0.07353]
[1763432545893,0.01547,91485.0,91428.0,0.02357]
[1763432545894,0.00219803,91470.0,91451.0,0.00016405]
[1763432546096,0.00219803,91470.0,91460.0,0.00073267]
[1763432547792,0.07426,91461.0,91460.0,0.00073267]
[1763432547985,0.07426,91461.0,91451.0,0.00016405]
[1763432547986,0.00219803,91460.0,91451.0,0.00016405]
[1763432548193,0.07476,91452.0,91451.0,0.00016405]
[1763432548694,0.16906664,91470.0,91451.0,0.00016405]
[1763432548886,0.00219803,91460.0,91451.0,0.00016405]
[1763432550097,0.00219803,91460.0,91459.0,0.0759]
[1763432551103,0.005,91476.0,91460.0,0.00073267]
[1763432551295,0.00219803,91470.0,91469.0,0.03928]
[1763432552003,0.00219803,91470.0,91458.0,0.02295]
[1763432552201,0.00219803,91470.0,91460.0,0.00073267]
[1763432552799,0.03777,91461.0,91460.0,0.00073267]
[1763432553001,0.005,91476.0,91460.0,0.00073267]
[1763432553198,0.00219803,91470.0,91469.0,0.0759]
[1763432553404,0.00219803,91470.0,91458.0,0.02295]
[1763432553603,0.00219803,91470.0,91460.0,0.00073267]
[1763432553904,0.07476,91471.0,91470.0,0.00030197]
[1763432554200,0.07476,91471.0,91470.0,0.0025]
[1763432554403,0.005,91476.0,91475.0,0.03928]
[1763432554612,0.005,91476.0,91475.0,0.0759]
[1763432555701,0.005,91476.0,91470.0,0.0025]
[1763432556100,0.005,91476.0,91475.0,0.03928]
[1763432556514,0.005,91476.0,91475.0,0.0759]
[1763432556998,0.16906664,91510.0,91475.0,0.0759]
[1763432557207,0.13440301,91564.0,91470.0,0.0025]
[1763432557208,0.16906664,91520.0,91490.0,0.00219803]
[1763432557397,0.16500038,91503.0,91490.0,0.00219803]
[1763432557710,0.08649136,91504.0,91490.0,0.00219803]
[1763432557911,0.16906664,91520.0,91490.0,0.00219803]
[1763432558114,0.00219803,91500.0,91490.0,0.00073267]
[1763432558607,0.03777,91491.0,91490.0,0.00073267]
[1763432558805,0.00219803,91490.0,91470.0,0.00030197]
[1763432559002,0.00016331,91489.0,91471.0,0.00016395]
[1763432559197,0.07476,91481.0,91480.0,0.00219803]
[1763432559808,0.00016331,91489.0,91480.0,0.00219803]
[1763432560004,0.00016331,91489.0,91488.0,0.03928]
[1763432560402,0.00016331,91489.0,91488.0,0.0759]
[1763432562813,0.00016331,91489.0,91477.0,0.02295]
[1763432563014,0.00016331,91489.0,91488.0,0.0759]
[1763432563513,0.00016331,91489.0,91488.0,0.03928]
[1763432563900,0.00016331,91489.0,91488.0,0.0759]
[1763432564600,0.00016331,91489.0,91477.0,0.02295]
[1763432564803,0.00016331,91489.0,91480.0,0.00219803]
[1763432566309,0.07476,91481.0,91480.0,0.00219803]
[1763432566512,0.07476,91472.0,91471.0,0.00016395]
[1763432567214,0.03777,91472.0,91471.0,0.00016395]
[1763432567418,0.00016331,91489.0,91471.0,0.00016395]
[1763432567711,0.07476,91481.0,91480.0,0.00219803]
[1763432567902,0.07476,91472.0,91471.0,0.00016395]
[1763432568102,0.08016,91472.0,91471.0,0.00016395]
[1763432568303,0.07476,91472.0,91471.0,0.00016395]
[1763432568508,0.00016331,91489.0,91471.0,0.00016395]
[1763432568816,0.07476,91481.0,91480.0,0.00219803]
[1763432569011,0.06161589,91481.0,91480.0,0.00219803]
[1763432570113,0.07476,91472.0,91471.0,0.00016395]
[1763432571407,0.18408001,91471.0,91428.0,0.06254966]
[1763432571614,0.03777,91441.0,91440.0,0.00219803]
[1763432571807,0.03851402,91469.0,91440.0,0.00219803]
[1763432572007,0.07476,91441.0,91440.0,0.00219803]
[1763432572203,0.07476,91441.0,91424.0,0.02295]
[1763432572407,0.07476,91441.0,91417.0,0.03897966]
[1763432572408,0.07476,91433.0,91427.0,0.00016405]
[1763432573326,0.07476,91433.0,91430.0,0.00219803]
[1763432574020,0.00016405,91446.0,91430.0,0.00219803]
[1763432574220,0.07476,91441.0,91440.0,0.00219803]
[1763432574514,0.00016405,91446.0,91440.0,0.00219803]
[1763432575214,0.0894248,91446.0,91440.0,0.00219803]
[1763432575409,0.00016405,91446.0,91440.0,0.00219803]
[1763432576210,0.07476,91441.0,91440.0,0.00219803]
[1763432576821,9.85e-06,91446.0,91427.0,0.00016405]
[1763432576822,0.07476,91433.0,91427.0,0.00016405]
[1763432577316,0.23771397,91433.0,91427.0,0.00016405]
[1763432577712,0.23771397,91433.0,91403.0,0.03897966]
[1763432577713,0.03807,91407.0,91403.0,0.03897966]
[1763432577918,0.03807,91407.0,91360.0,0.17906663]
[1763432577919,0.16906664,91430.0,91400.0,0.00219803]
[1763432578226,0.16392383,91429.0,91400.0,0.00219803]
[1763432578920,0.1510697,91429.0,91405.0,0.00016405]
[1763432579219,0.07691,91421.0,91420.0,0.00219803]
[1763432579916,0.07691,91421.0,91405.0,0.00016405]
[1763432580124,0.07691,91406.0,91405.0,4.05e-06]
[1763432580312,0.07691,91387.0,91386.0,0.02939223]
[1763432580519,0.07691,91381.0,91380.0,0.00219803]
[1763432580917,0.03807,91381.0,91380.0,0.00219803]
[1763432581219,0.03807,91381.0,91357.0,0.05793508]
[1763432581220,0.07691,91356.0,91347.0,0.02939223]
[1763432581410,0.2712,91376.0,91350.0,0.00219803]
[1763432581610,0.00016414,91365.0,91360.0,0.00219803]
[1763432581816,0.00016414,91365.0,91356.0,1.5]
[1763432581817,0.07691,91357.0,91356.0,1.5]
[1763432582210,0.07691,91356.0,91346.0,0.00016414]
[1763432582409,0.00016414,91365.0,91350.0,0.02298803]
[1763432582730,0.07691,91357.0,91356.0,1.5]
[1763432583222,0.08890807,91365.0,91360.0,0.00219803]
[1763432583720,0.08890807,91365.0,91364.0,0.03662]
[1763432584023,0.08890807,91365.0,91360.0,0.00219803]
[1763432584024,0.07691,91361.0,91360.0,0.00219803]
[1763432584614,0.10944001,91360.0,91346.0,0.00016414]
[1763432584823,0.10944001,91364.0,91346.0,0.00016414]
[1763432585024,0.11510442,91356.0,91314.0,0.02079]
[1763432585216,0.11510442,91324.0,91320.0,0.00219803]
[1763432585521,0.11510442,91330.0,91320.0,0.00219803]
[1763432585822,0.16517641,91329.0,91321.0,1.5]
[1763432586616,0.25312244,91329.0,91320.0,0.00219803]
[1763432588920,0.10958701,91328.0,91260.0,0.02079]
[1763432589121,0.25301562,91329.0,91290.0,0.00219803]
[1763432589122,0.11510442,91306.0,91290.0,0.00219803]
[1763432589322,0.11510442,91300.0,91291.0,1.5]
[1763432589823,0.11510442,91301.0,91291.0,1.5]
[1763432590029,0.000107,91305.0,91296.0,0.02079]
[1763432590030,0.00027125,91305.0,91296.0,0.02079]
[1763432590229,0.16405295,91300.0,91291.0,1.5]
[1763432590524,0.00027125,91305.0,91291.0,1.5]
[1763432590525,0.000107,91299.0,91291.0,1.5]
[1763432590717,0.08984494,91299.0,91291.0,1.5]
[1763432590918,0.16405295,91298.0,91291.0,1.5]
[1763432591119,0.27357295,91298.0,91291.0,1.5]
[1763432591323,0.16405295,91298.0,91290.0,0.00219803]
[1763432591722,0.16405295,91298.0,91291.0,1.5]
[1763432594525,0.08984494,91299.0,91298.0,0.072]
[1763432594711,0.08984494,91299.0,91295.0,0.02079]
[1763432594912,0.08984494,91299.0,91291.0,1.5]
[1763432595317,0.1632099,91298.0,91287.0,0.00016425]
[1763432595513,0.11510442,91297.0,91265.0,9.276e-05]
[1763432595731,0.11510442,91280.0,91270.0,0.00219803]
[1763432595925,0.11510442,91280.0,91271.0,1.5]
[1763432596130,0.000107,91279.0,91271.0,1.5]
[1763432596724,0.000107,91279.0,91276.0,0.02079]
[1763432597316,0.000107,91279.0,91278.0,0.03662]
[1763432597517,0.000107,91279.0,91276.0,0.02079]
[1763432597721,0.000107,91279.0,91278.0,0.072]
[1763432598529,0.00016425,91284.0,91283.0,0.06899]
[1763432598825,0.08973794,91299.0,91298.0,0.06451]
[1763432599027,0.11510442,91310.0,91300.0,0.00219803]
[1763432599431,0.16389819,91309.0,91300.0,0.00219803]
[1763432600730,0.00016425,91314.0,91308.0,0.06451]
[1763432600923,0.00016425,91314.0,91300.0,0.00219803]
[1763432601227,0.00016425,91314.0,91309.0,0.06451]
[1763432601426,0.08898416,91314.0,91313.0,0.06451]
[1763432601630,0.08898416,91314.0,91300.0,0.00219803]
[1763432601631,0.00016425,91314.0,91310.0,0.00219803]
[1763432602526,0.08629185,91314.0,91310.0,0.00219803]
[1763432603139,0.08629185,91314.0,91300.0,0.00219803]
[1763432603433,0.11510442,91310.0,91300.0,0.00219803]
[1763432604332,0.08629185,91314.0,91300.0,0.00219803]
[1763432604530,0.11510442,91310.0,91300.0,0.00219803]
[1763432605732,0.16465506,91309.0,91300.0,0.00219803]
[1763432607519,0.15148544,91309.0,91300.0,0.00219803]
[1763432607721,0.15148544,91309.0,91308.0,0.03254]
[1763432607919,0.15148544,91309.0,91308.0,0.06518]
[1763432608340,0.00016425,91314.0,91313.0,0.06518]
[1763432608637,0.11510442,91360.0,91329.0,0.03254]
[1763432608826,0.08116,91343.0,91340.0,0.00219803]
[1763432609028,0.08116,91343.0,91314.0,0.01946]
[1763432609225,0.00219803,91330.0,91320.0,0.00059897]
[1763432609730,0.00219803,91330.0,91329.0,0.06518]
[1763432610133,0.08835712,91330.0,91329.0,0.06518]
[1763432610332,0.00016425,91334.0,91333.0,0.06518]
[1763432610531,0.11510442,91360.0,91333.0,0.06518]
[1763432610742,0.0901931,91360.0,91350.0,0.02005897]
[1763432611035,0.08799507,91360.0,91359.0,0.06518]
[1763432611244,0.11510442,91390.0,91360.0,0.00059897]
[1763432611431,0.28578245,91390.0,91360.0,0.00059897]
[1763432611740,0.00016416,91384.0,91383.0,0.06518]
[1763432612039,0.00016416,91384.0,91380.0,0.00059897]
[1763432612440,0.0618,91381.0,91370.0,0.00059897]
[1763432612635,0.11730245,91380.0,91371.0,0.01946]
[1763432612932,0.11730245,91380.0,91370.0,0.00059897]
[1763432613236,0.0309,91367.0,91366.0,0.00016416]
[1763432613537,0.0618,91367.0,91366.0,0.00016416]
[1763432613740,0.00219803,91370.0,91366.0,0.00016416]
[1763432613929,0.0618,91367.0,91366.0,0.00016416]
[1763432615034,0.22704092,91367.0,91332.0,0.01946]
[1763432615337,0.11730245,91360.0,91350.0,0.00059897]
[1763432615638,0.0618,91351.0,91332.0,0.01946]
[1763432615937,0.0618,91351.0,91340.0,0.00059897]
[1763432615938,0.11510442,91350.0,91340.0,0.00059897]
[1763432616233,0.11730245,91350.0,91340.0,0.00059897]
[1763432617330,0.11730245,91350.0,91332.0,0.00016416]
[1763432617331,0.0309,91333.0,91332.0,0.00016416]
[1763432617634,0.11510442,91342.0,91332.0,0.00016416]
[1763432617931,0.0309,91341.0,91340.0,0.00059897]
[1763432618335,0.0309,91333.0,91332.0,0.00016416]
[1763432618536,0.0618,91333.0,91332.0,0.00016416]
[1763432619136,0.11510442,91342.0,91332.0,0.01962416]
[1763432619344,0.00219803,91340.0,91332.0,0.01962416]
[1763432620129,0.0618,91331.0,91288.0,0.02939223]
[1763432620336,0.11730245,91320.0,91310.0,0.00059897]
[1763432620629,0.0618,91311.0,91310.0,0.00059897]
[1763432621127,0.15085962,91311.0,91310.0,0.00059897]
[1763432621327,0.06189666,91311.0,91310.0,0.00059897]
[1763432621534,9.666e-05,91311.0,91310.0,0.00059897]
[1763432621728,9.666e-05,91311.0,91310.0,0.06577897]
[1763432621729,0.08791094,91311.0,91310.0,0.06577897]
[1763432621931,9.666e-05,91311.0,91310.0,0.06577897]
[1763432622242,9.666e-05,91311.0,91310.0,0.00059897]
[1763432622842,9.666e-05,91311.0,91310.0,0.06577897]
[1763432625142,0.06189666,91311.0,91310.0,0.00059897]
[1763432625741,9.666e-05,91311.0,91310.0,0.00059897]
[1763432626135,9.666e-05,91311.0,91310.0,0.06577897]
[1763432627834,0.06189666,91311.0,91310.0,0.00059897]
[1763432628040,0.00219803,91310.0,91301.0,0.00016426]
[1763432629045,0.00219803,91310.0,91309.0,0.06518]
[1763432630341,0.00219803,91310.0,91301.0,0.00016426]
[1763432632543,0.00219803,91310.0,91309.0,0.06518]
[1763432633044,0.00219803,91310.0,91301.0,0.00016426]
[1763432633045,9.666e-05,91311.0,91310.0,0.06577897]
[1763432633343,0.00016426,91320.0,91319.0,0.06518]
[1763432635650,0.11510442,91350.0,91320.0,0.00219803]
[1763432635855,0.11510442,91350.0,91329.0,0.06518]
[1763432636147,0.16452793,91348.0,91340.0,0.00219803]
[1763432636352,0.16452793,91349.0,91340.0,0.00219803]
[1763432636650,0.06212,91341.0,91328.0,0.01946]
[1763432636953,0.00016426,91344.0,91330.0,0.00219803]
[1763432637154,0.11510442,91340.0,91330.0,0.00219803]
[1763432637650,0.00016426,91344.0,91330.0,0.00219803]
[1763432638148,0.00016426,91344.0,91343.0,0.0638]
[1763432639255,1.92e-05,91344.0,91343.0,0.0638]
[1763432640053,1.92e-05,91344.0,91340.0,0.03430803]
[1763432640253,0.04766,91341.0,91340.0,0.00219803]
[1763432640449,1.92e-05,91344.0,91325.0,0.00016426]
[1763432640450,0.04766,91326.0,91325.0,0.00016426]
[1763432640650,1.92e-05,91344.0,91337.0,0.0638]
[1763432640953,1.92e-05,91344.0,91330.0,0.00219803]
[1763432641757,1.92e-05,91344.0,91331.0,0.1096232]
[1763432641942,1.92e-05,91344.0,91335.0,0.1096186]
[1763432642149,0.03851402,91380.0,91344.0,0.0171]
[1763432642353,0.03851402,91391.0,91371.0,0.0638]
[1763432642549,0.03851402,91391.0,91360.0,0.01929803]
[1763432642550,0.16422659,91394.0,91380.0,0.00219803]
[1763432642755,0.16422659,91389.0,91380.0,0.00219803]
[1763432642956,0.16422659,91393.0,91380.0,0.00219803]
[1763432643344,0.16373835,91388.0,91380.0,0.00219803]
[1763432643549,0.16373835,91395.0,91380.0,0.00219803]
[1763432643751,0.00016416,91396.0,91380.0,0.00219803]
[1763432643955,0.16373835,91393.0,91380.0,0.00219803]
[1763432644149,0.16373835,91395.0,91377.0,0.00016416]
[1763432644150,0.04766,91381.0,91377.0,0.00016416]
[1763432644450,0.04766,91378.0,91377.0,0.00016416]
[1763432645044,0.088361,91396.0,91380.0,0.00219803]
[1763432645555,0.16367024,91395.0,91380.0,0.00219803]
[1763432645763,0.088361,91396.0,91380.0,0.00219803]
[1763432646158,0.00016416,91396.0,91395.0,0.0638]
[1763432646755,0.03851402,91426.0,91395.0,0.0638]
[1763432646957,0.03851402,91426.0,91392.0,0.0171]
[1763432646958,0.08785838,91411.0,91410.0,0.06599803]
[1763432647866,0.00016407,91420.0,91410.0,0.06599803]
[1763432648355,0.00016407,91420.0,91419.0,0.0638]
[1763432650161,0.0769757,91477.0,91409.0,0.0171]
[1763432650162,0.0844,91449.0,91431.0,0.0638]
[1763432650464,0.048,91441.0,91440.0,0.00219803]
[1763432651050,0.00999999,91480.0,91440.0,0.06599803]
[1763432651051,0.44009363,91460.0,91440.0,0.06599803]
[1763432651256,0.44009363,91460.0,91440.0,0.00219803]
[1763432651257,0.048,91441.0,91440.0,0.00219803]
[1763432651862,0.6906,91482.0,91440.0,0.08309803]
[1763432652159,0.16498517,91459.0,91440.0,0.08309803]
[1763432652359,0.271,91466.0,91440.0,0.08309803]
[1763432652763,0.16415803,91465.0,91440.0,0.08309803]
[1763432653055,0.16415803,91469.0,91440.0,0.08309803]
[1763432653365,0.39245363,91470.0,91440.0,0.08309803]
[1763432653566,0.16326462,91469.0,91440.0,0.08309803]
[1763432653960,0.16326462,91471.0,91440.0,0.08309803]
[1763432654168,0.16909363,91470.0,91440.0,0.08309803]
[1763432654558,0.16457911,91469.0,91440.0,0.08309803]
[1763432654764,0.08647205,91472.0,91440.0,0.08309803]
[1763432654967,0.69048,91509.0,91447.0,0.00016398]
[1763432654968,0.16457911,91475.0,91447.0,0.00016398]
[1763432655161,0.0083,91511.0,91460.0,0.00219803]
[1763432655162,0.16909363,91480.0,91460.0,0.00219803]
[1763432655361,0.16909363,91480.0,91461.0,0.00016398]
[1763432655561,0.16909363,91480.0,91470.0,0.00219803]
[1763432655775,0.16317353,91479.0,91470.0,0.00219803]
[1763432656364,0.16481432,91488.0,91487.0,0.0638]
[1763432656670,0.024,91491.0,91490.0,0.00219803]
[1763432656870,0.024,91491.0,91490.0,1.50219803]
[1763432657172,0.024,91491.0,91478.0,0.00016398]
[1763432657173,0.048,91479.0,91478.0,0.00016398]
[1763432657467,0.048,91479.0,91478.0,1.50016398]
[1763432658173,0.048,91479.0,91472.0,0.01643018]
[1763432658369,0.16909363,91490.0,91478.0,0.03211]
[1763432658570,0.16909363,91490.0,91480.0,0.00219803]
[1763432658870,0.03851402,91544.0,91490.0,0.05531]
[1763432659167,0.03764,91501.0,91500.0,0.00219803]
[1763432659372,0.03764,91495.0,91494.0,0.00016398]
[1763432659765,0.16326721,91509.0,91494.0,0.00016398]
[1763432659965,0.00016398,91512.0,91508.0,0.02712]
[1763432660173,0.00016398,91512.0,91504.0,0.01695]
[1763432660475,0.00016398,91512.0,91511.0,0.05531]
[1763432661569,0.01882,91511.0,91510.0,0.00219803]
[1763432661768,0.00016398,91512.0,91510.0,0.00219803]
[1763432661979,0.00016398,91512.0,91511.0,0.05531]
[1763432662661,0.00016398,91512.0,91511.0,0.02712]
[1763432662860,0.00016398,91512.0,91510.0,0.00219803]
[1763432662861,0.01882,91511.0,91510.0,0.00219803]
[1763432663068,0.03764,91495.0,91494.0,0.00016398]
[1763432664278,0.00016398,91512.0,91511.0,0.07226]
[1763432664771,0.005,91516.0,91511.0,0.07226]
[1763432664963,0.005,91516.0,91515.0,0.05531]
[1763432665971,0.25904,91544.0,91525.0,0.05531]
[1763432666372,0.25904,91544.0,91543.0,0.05531]
[1763432666573,0.03818,91541.0,91540.0,0.00219803]
[1763432666879,0.03818,91541.0,91534.0,0.00016388]
[1763432666880,0.03818,91535.0,91534.0,0.00016388]
[1763432667070,0.03818,91535.0,91455.0,0.00010534]
[1763432667272,0.16298201,91535.0,91500.0,0.00219803]
[1763432667472,0.16909363,91510.0,91500.0,0.00219803]
[1763432667980,0.03402,91501.0,91500.0,0.00219803]
[1763432668666,0.03402,91501.0,91496.0,0.00016388]
[1763432668667,0.01465,91492.0,91455.0,0.00010534]
[1763432668977,0.00219803,91500.0,91455.0,0.00010534]
[1763432668978,0.0281,91456.0,91455.0,0.00010534]
[1763432669273,0.0281,91456.0,91455.0,1.50010534]
[1763432669575,0.11377866,91456.0,91455.0,1.50010534]
[1763432669775,0.02788,91447.0,91446.0,0.00016397]
[1763432670084,0.00219803,91430.0,91390.0,0.18482363]
[1763432670380,0.00219803,91430.0,91423.0,1.5]
[1763432670781,0.0001016,91429.0,91423.0,1.5]
[1763432671376,0.0001016,91429.0,91428.0,0.02619]
[1763432671682,0.0001016,91429.0,91423.0,1.5]
[1763432672777,0.02788,91424.0,91423.0,1.5]
[1763432673373,0.00219803,91420.0,91417.0,0.00016407]
[1763432673572,0.02788,91418.0,91417.0,0.00016407]
[1763432673773,0.02788,91418.0,91371.0,0.01573]
[1763432673969,0.16909363,91390.0,91377.0,1.5]
[1763432674173,0.27066534,91389.0,91377.0,1.5]
[1763432674476,0.02788,91377.0,91360.0,0.01573]
[1763432674679,0.02788,91377.0,91344.0,0.01088105]
[1763432674680,0.02797993,91377.0,91344.0,0.01088105]
[1763432674979,0.00219803,91350.0,91349.0,0.02619]
[1763432675569,0.00219803,91350.0,91345.0,1.5]
[1763432675883,0.00230307,91350.0,91349.0,0.02619]
[1763432676182,0.00230307,91350.0,91345.0,1.5]
[1763432676183,0.25206307,91354.0,91350.0,0.00146535]
[1763432676582,0.00016417,91359.0,91350.0,0.00146535]
[1763432676978,0.08076,91358.0,91350.0,0.00146535]
[1763432677177,0.00010028,91357.0,91356.0,0.05431]
[1763432677585,0.00010028,91357.0,91350.0,0.004]
[1763432677776,0.00010028,91357.0,91350.0,0.00619803]
[1763432677981,0.00010028,91357.0,91356.0,0.05431]
[1763432678484,0.03851402,91417.0,91356.0,0.05431]
[1763432678485,0.04272,91393.0,91360.0,0.00219803]
[1763432678684,0.01072294,91398.0,91397.0,0.02619]
[1763432678880,0.01,91406.0,91400.0,0.00219803]
[1763432679075,0.2706,91405.0,91400.0,0.00219803]
[1763432679279,0.16442833,91405.0,91392.0,0.01573]
[1763432679586,0.00219803,91400.0,91389.0,0.00016408]
[1763432679778,0.17129166,91400.0,91389.0,0.00016408]
[1763432680286,0.17129166,91400.0,91390.0,0.002]
[1763432680287,0.16499621,91399.0,91390.0,0.002]
[1763432680480,0.16499621,91399.0,91398.0,0.05431]
[1763432680876,0.43563621,91399.0,91398.0,0.05431]
[1763432681075,0.16499621,91399.0,91398.0,0.05431]
[1763432681280,0.43563621,91399.0,91398.0,0.05431]
[1763432681483,0.00019803,91400.0,91399.0,0.05431]
[1763432681686,0.27083803,91400.0,91399.0,0.05431]
[1763432682387,0.00019803,91400.0,91399.0,0.05431]
[1763432682875,0.00016408,91408.0,91407.0,0.05431]
[1763432683477,0.00016408,91408.0,91407.0,0.02619]
[1763432683774,0.00016408,91408.0,91399.0,0.003]
[1763432683980,0.00016408,91408.0,91407.0,0.05431]
[1763432685079,0.00016408,91408.0,91407.0,0.002]
[1763432685480,0.00016408,91408.0,91407.0,0.05631]
[1763432685684,0.0107342,91441.0,91407.0,0.05631]
[1763432685685,0.00999999,91470.0,91410.0,0.002]
[1763432685873,0.0009307,91460.0,91420.0,0.16909363]
[1763432686078,0.1650319,91459.0,91430.0,0.002]
[1763432686277,0.0009307,91450.0,91449.0,0.05431]
[1763432687286,0.0009307,91450.0,91440.0,0.00016408]
[1763432687486,0.17002433,91450.0,91440.0,0.01789408]
[1763432688882,0.0009307,91450.0,91449.0,0.003]
[1763432689087,0.0009307,91450.0,91449.0,0.02919]
[1763432689482,0.0009307,91450.0,91449.0,0.05431]
[1763432690284,0.0009307,91450.0,91440.0,0.01589408]
[1763432690489,0.18423433,91450.0,91449.0,0.002]
[1763432690784,0.18423433,91450.0,91440.0,0.01789408]
[1763432690785,0.02842,91441.0,91440.0,0.00016408]
[1763432690980,0.0009307,91440.0,91377.0,0.02903148]
[1763432691186,0.16909363,91420.0,91410.0,0.002]
[1763432691388,0.17002433,91420.0,91410.0,0.002]
[1763432691787,0.0009307,91420.0,91410.0,0.002]
[1763432691987,0.17002433,91420.0,91410.0,0.002]
[1763432692179,0.16478644,91419.0,91410.0,0.002]
[1763432692387,0.16278644,91419.0,91410.0,0.002]
[1763432692987,0.16278644,91419.0,91410.0,0.006]
[1763432693187,0.16278644,91419.0,91410.0,0.004]
[1763432693398,0.16278644,91419.0,91410.0,0.006]
[1763432693893,0.16278644,91419.0,91410.0,0.005]
[1763432694405,0.16278644,91419.0,91410.0,0.003]
[1763432694588,0.27056,91418.0,91410.0,0.005]
[1763432694891,0.27056,91418.0,91410.0,0.003]
[1763432695295,0.17002433,91420.0,91410.0,0.003]
[1763432695491,0.01421,91407.0,91406.0,0.00016408]
[1763432695794,0.17457558,91407.0,91406.0,0.00016408]
[1763432696388,0.17257558,91407.0,91406.0,0.00016408]
[1763432696789,0.0009307,91410.0,91409.0,0.0529]
[1763432697885,0.2614,91427.0,91423.0,0.05356]
[1763432698198,0.16909363,91440.0,91423.0,0.05356]
[1763432698398,0.08488,91438.0,91423.0,0.05356]
[1763432699294,0.08488,91438.0,91422.0,0.01402]
[1763432699499,0.0009307,91430.0,91422.0,0.01402]
[1763432699690,0.00196,91421.0,91420.0,0.002]
[1763432700197,0.08649911,91443.0,91420.0,0.002]
[1763432700400,0.03851402,91465.0,91423.0,0.05356]
[1763432700604,0.17002433,91460.0,91430.0,0.002]
[1763432700897,0.11512006,91440.0,91430.0,0.002]
[1763432701099,0.0009307,91440.0,91430.0,0.002]
[1763432701396,0.11605076,91440.0,91430.0,0.002]
[1763432702795,0.27052,91439.0,91430.0,0.002]
[1763432703593,0.00292,91427.0,91426.0,0.00016408]
[1763432703796,0.00292,91427.0,91404.0,0.01573]
[1763432704100,0.11512006,91414.0,91410.0,0.002]
[1763432704501,0.11412006,91414.0,91410.0,0.002]
[1763432704804,0.16358205,91413.0,91410.0,0.002]
[1763432705503,0.0009307,91420.0,91419.0,0.05356]
[1763432706204,0.00016408,91421.0,91420.0,0.05556]
[1763432707001,0.00208408,91421.0,91420.0,0.002]
[1763432707497,0.0028507,91420.0,91419.0,0.001]
[1763432707900,0.0028507,91420.0,91403.0,0.00016408]
[1763432707901,0.16631562,91420.0,91403.0,0.00016408]
[1763432708103,0.00178,91411.0,91410.0,0.00219803]
[1763432708699,0.00178,91411.0,91403.0,0.00016408]
[1763432708897,0.00178,91404.0,91403.0,0.00016408]
[1763432709098,0.24838,91404.0,91403.0,0.00016408]
[1763432709905,0.24738,91404.0,91403.0,0.00016408]
[1763432710405,0.11512006,91413.0,91403.0,0.00016408]